bitfinex/quotes_ETHUSD_20250924
["timestamp","ask_amount","ask_price","bid_price","bid_amount"]
[1758699212921,1.21217373,4178.4,4178.3,18.486]
[1758699214093,0.76427373,4178.4,4178.3,18.486]
[1758699214304,0.51567373,4178.4,4178.3,18.486]
[1758699217026,0.76427373,4178.4,4178.3,18.486]
[1758699218540,0.51567373,4178.4,4178.3,18.486]
[1758699222140,0.74917373,4178.4,4178.3,18.486]
[1758699225743,0.74837373,4178.4,4178.3,18.486]
[1758699225954,0.51487373,4178.4,4178.3,18.486]
[1758699226648,0.74837373,4178.4,4178.3,18.486]
[1758699229748,0.51487373,4178.4,4178.3,18.486]
[1758699233959,0.51487373,4178.4,4178.3,18.486]
[1758699238036,0.51487373,4178.4,4178.3,14.7446]
[1758699238233,0.51487373,4178.4,4178.3,18.7296]
[1758699238653,0.51487373,4178.4,4178.3,19.1837]
[1758699240275,0.51487373,4178.4,4178.3,18.485]
[1758699240992,0.51487373,4178.4,4178.3,19.3029]
[1758699241286,0.51487373,4178.4,4178.3,24.69621785]
[1758699241573,0.001,4178.7,4178.4,5.3932473]
[1758699241737,0.51552931,4178.6,4178.5,6.985]
[1758699241937,0.51552931,4178.6,4178.5,7.6837]
[1758699242176,0.51552931,4178.6,4178.5,7.8029]
[1758699245372,0.51552931,4178.6,4178.5,14.6192]
[1758699245574,3.61539608,4178.6,4178.5,3.985]
[1758699246392,1.22222931,4178.6,4178.5,3.985]
[1758699246598,0.75002931,4178.6,4178.5,3.985]
[1758699249601,0.51652931,4178.6,4178.5,18.485]
[1758699251715,1.22102931,4178.6,4178.5,18.485]
[1758699252214,4.92265889,4178.6,4178.5,3.985]
[1758699252714,2.52951287,4178.6,4178.5,3.985]
[1758699253103,2.52871287,4178.6,4178.3,0.004]
[1758699253397,2.39320974,4178.5,4178.4,3.985]
[1758699253599,2.39320974,4178.5,4178.3,0.004]
[1758699253600,2.39326057,4178.4,4178.3,0.004]
[1758699253805,4.0468299,4178.4,4178.3,0.004]
[1758699254102,4.2838299,4178.4,4178.3,0.004]
[1758699255880,8.2688299,4178.4,4178.3,0.004]
[1758699256266,9.55421948,4178.4,4178.3,0.004]
[1758699257074,9.92958541,4178.4,4178.3,0.004]
[1758699257472,9.46208541,4178.4,4178.3,0.004]
[1758699257677,9.92298541,4178.4,4178.3,0.004]
[1758699258184,9.54761948,4178.4,4178.3,0.004]
[1758699258386,8.2622299,4178.4,4178.3,0.004]
[1758699260297,7.8013299,4178.4,4178.3,0.004]
[1758699261304,2.7873299,4178.4,4178.3,0.004]
[1758699261505,2.9065299,4178.4,4178.3,0.004]
[1758699261692,3.6985299,4178.4,4178.3,0.004]
[1758699261892,8.3914299,4178.4,4178.3,0.004]
[1758699264830,11.3914299,4178.4,4178.3,0.004]
[1758699265014,11.90431157,4178.4,4178.3,0.004]
[1758699265222,3.18537513,4178.2,4178.1,0.004]
[1758699265386,16.35767196,4178.2,4178.1,1e-08]
[1758699265590,17.67353374,4178.2,4178.1,1e-08]
[1758699266133,18.04895479,4178.2,4178.1,1e-08]
[1758699266822,3.60796178,4178.1,4177.3,0.004]
[1758699266984,11.86007709,4177.7,4177.3,0.004]
[1758699267184,16.35795841,4177.7,4177.3,0.004]
[1758699267387,17.06585841,4177.7,4177.3,0.004]
[1758699268317,18.34582303,4177.7,4177.3,0.004]
[1758699268519,20.42936059,4177.7,4177.3,0.004]
[1758699269286,16.44436059,4177.7,4177.3,0.004]
[1758699269492,20.43036059,4177.7,4177.3,0.004]
[1758699270324,19.15039597,4177.7,4177.3,0.004]
[1758699270626,18.68949597,4177.7,4177.3,0.004]
[1758699275135,18.44249597,4177.7,4177.3,0.004]
[1758699276246,18.68949597,4177.7,4177.3,0.004]
[1758699277120,18.44249597,4177.7,4177.3,0.004]
[1758699277316,19.72246059,4177.7,4177.4,0.2336]
[1758699277708,19.72246059,4177.7,4177.4,0.004]
[1758699278304,6.27004508,4177.7,4177.4,0.004]
[1758699278641,3.54706042,4177.7,4177.6,0.6735]
[1758699278806,4.33906042,4177.7,4177.6,0.6735]
[1758699279939,4.33826042,4177.7,4177.6,0.6735]
[1758699280251,9.37215841,4177.7,4177.6,0.2336]
[1758699280410,9.37215841,4177.7,4177.6,0.004]
[1758699280610,11.0423335,4177.7,4177.6,0.004]
[1758699281635,15.0283335,4177.7,4177.6,0.004]
[1758699282148,11.0423335,4177.7,4177.6,0.004]
[1758699282326,15.88237342,4177.7,4177.6,0.004]
[1758699282526,10.20795791,4177.7,4177.6,0.6718]
[1758699282828,8.05915747,4177.7,4177.6,0.6718]
[1758699283210,8.91319739,4177.7,4177.6,0.6718]
[1758699284231,4.92719739,4177.7,4177.6,0.6718]
[1758699285231,4.07315747,4177.7,4177.6,0.6718]
[1758699285611,4.93042011,4177.7,4177.6,0.6718]
[1758699285814,4.19315747,4177.7,4177.6,0.6718]
[1758699286015,1.79949589,4177.7,4177.6,0.6718]
[1758699286766,0.88829589,4177.7,4177.6,0.6718]
[1758699286972,4.71631547,4177.7,4177.6,0.004]
[1758699287119,4.07395747,4177.7,4177.6,0.004]
[1758699287320,9.21699257,4177.7,4177.6,0.004]
[1758699287519,10.93635719,4177.7,4177.6,0.004]
[1758699288319,10.56094262,4177.7,4177.6,0.004]
[1758699289564,9.88044262,4177.7,4177.6,0.004]
[1758699290262,8.600478,4177.7,4177.6,0.004]
[1758699291321,9.88044262,4177.7,4177.6,0.004]
[1758699291554,10.25586382,4177.7,4177.6,0.004]
[1758699292669,8.9758992,4177.7,4177.6,0.004]
[1758699293075,4.9898992,4177.7,4177.6,0.6718]
[1758699293571,5.05048363,4177.7,4177.6,0.6718]
[1758699294235,1.74562205,4177.7,4177.6,0.6718]
[1758699294435,4.13928363,4177.7,4177.6,0.6718]
[1758699295544,4.13928363,4177.7,4177.6,0.004]
[1758699295749,4.13928363,4177.7,4177.6,0.6718]
[1758699296473,1.74562205,4177.7,4177.6,0.6718]
[1758699297268,0.88830252,4177.7,4177.6,0.6718]
[1758699297643,3.2819641,4177.7,4177.6,0.6718]
[1758699298778,0.88830252,4177.7,4177.6,0.6718]
[1758699298937,0.51288132,4177.7,4177.6,0.6718]
[1758699299372,0.51288132,4177.7,4177.6,15.1718]
[1758699303154,0.51388132,4177.7,4177.6,15.1718]
[1758699304550,2.9075429,4177.7,4177.6,15.1718]
[1758699304756,0.51388132,4177.7,4177.6,15.1718]
[1758699306587,0.51388132,4177.7,4177.6,17.56551888]
[1758699306783,0.51388132,4177.7,4177.6,15.1718]
[1758699307092,0.51308132,4177.7,4177.6,15.1718]
[1758699313182,0.51308132,4177.7,4177.6,19.1568]
[1758699316092,0.001,4177.7,4177.6,19.1568]
[1758699319094,0.5152096,4177.7,4177.6,21.55051888]
[1758699319488,0.5152096,4177.7,4177.6,19.1568]
[1758699319697,0.5152096,4177.7,4177.6,21.55051888]
[1758699321707,0.5152096,4177.7,4177.6,19.1568]
[1758699321908,0.5152096,4177.7,4177.6,21.55051888]
[1758699322809,0.5152096,4177.7,4177.6,21.66971888]
[1758699323099,0.001,4177.7,4177.6,21.66971888]
[1758699323404,0.001,4177.7,4177.6,24.66971888]
[1758699325455,0.001,4177.7,4177.6,20.01691888]
[1758699325613,0.001,4177.7,4177.6,21.6082]
[1758699325820,0.001,4177.7,4177.6,25.99591888]
[1758699326517,0.001,4177.7,4177.6,18.6082]
[1758699330548,5.02552675,4177.7,4177.6,0.004]
[1758699330754,5.87167261,4177.7,4177.6,0.004]
[1758699331372,7.15699966,4177.7,4177.6,0.004]
[1758699331518,5.87167261,4177.7,4177.6,0.004]
[1758699332258,6.18577618,4177.5,4177.4,0.004]
[1758699332464,14.44047951,4177.5,4177.4,0.004]
[1758699332872,15.12187951,4177.5,4177.4,0.004]
[1758699333100,19.10587951,4177.5,4177.4,0.004]
[1758699333393,20.38955193,4177.5,4177.4,0.004]
[1758699333986,19.10587951,4177.5,4177.4,0.004]
[1758699334299,20.38874997,4177.5,4177.4,0.004]
[1758699334793,19.10507951,4177.5,4177.4,0.004]
[1758699334995,20.38815353,4177.5,4177.4,0.004]
[1758699335289,19.10507951,4177.5,4177.4,0.004]
[1758699340366,19.95858207,4177.5,4177.4,0.004]
[1758699342293,20.33403821,4177.5,4177.4,0.004]
[1758699342668,19.4008142,4177.5,4177.4,0.004]
[1758699344475,18.7194142,4177.5,4177.4,0.004]
[1758699344877,18.9579142,4177.5,4177.4,0.004]
[1758699345075,19.4283142,4177.5,4177.4,0.004]
[1758699345491,15.4443142,4177.5,4177.4,0.004]
[1758699345812,17.86791164,4177.5,4177.4,0.004]
[1758699346037,18.57681164,4177.5,4177.4,0.004]
[1758699346922,18.10641164,4177.5,4177.4,0.004]
[1758699349394,18.33831164,4177.5,4177.4,0.004]
[1758699349605,18.57681164,4177.5,4177.4,0.004]
[1758699350498,19.4303142,4177.5,4177.4,0.004]
[1758699351723,6.18583348,4177.4,4177.2,0.004]
[1758699351924,11.53990702,4177.3,4177.2,0.004]
[1758699352083,12.24880702,4177.3,4177.2,0.004]
[1758699354419,11.39530446,4177.3,4177.2,0.004]
[1758699355684,6.70040446,4177.3,4177.2,0.004]
[1758699355909,13.55603577,4177.3,4177.2,0.2504]
[1758699356115,13.55603577,4177.3,4177.2,0.004]
[1758699356413,12.70195872,4177.3,4177.2,0.004]
[1758699357911,8.71595872,4177.3,4177.2,0.004]
[1758699358109,12.70195872,4177.3,4177.2,0.004]
[1758699359328,13.98503274,4177.3,4177.2,0.004]
[1758699359529,9.99903274,4177.3,4177.2,0.004]
[1758699359693,13.98503274,4177.3,4177.2,0.004]
[1758699360331,3.18594809,4177.2,4177.1,0.004]
[1758699360532,6.14329936,4177.2,4177.1,0.004]
[1758699360835,6.14329936,4177.2,4177.1,0.6875]
[1758699361134,5.35129936,4177.2,4177.1,0.6875]
[1758699361341,3.81886176,4177.2,4177.1,0.6875]
[1758699362525,3.81886176,4177.2,4177.1,0.004]
[1758699362735,4.05736176,4177.2,4177.1,0.004]
[1758699363398,13.48518253,4177.2,4177.1,0.004]
[1758699364423,7.80486176,4177.2,4177.1,0.004]
[1758699364602,13.48518253,4177.2,4177.1,0.2504]
[1758699364934,13.48518253,4177.2,4177.1,0.6875]
[1758699365426,15.39693986,4177.2,4177.1,0.6875]
[1758699365641,15.39693986,4177.2,4177.1,0.004]
[1758699365849,15.77239533,4177.2,4177.1,0.004]
[1758699368252,15.39693986,4177.2,4177.1,0.004]
[1758699368958,15.39693986,4177.2,4177.1,0.2504]
[1758699370451,11.41093986,4177.2,4177.1,0.2504]
[1758699370648,15.39693986,4177.2,4177.1,0.004]
[1758699372245,15.64483986,4177.2,4177.1,0.004]
[1758699372550,15.77240219,4177.2,4177.1,0.004]
[1758699372736,16.02030219,4177.2,4177.1,0.004]
[1758699374817,15.77240219,4177.2,4177.1,0.004]
[1758699375562,2.39406272,4177.0,4176.9,0.2319]
[1758699375770,8.18163845,4177.0,4176.9,0.4733]
[1758699376353,10.41507115,4177.0,4176.9,0.7012]
[1758699378852,10.53752426,4177.0,4176.9,0.7012]
[1758699381150,10.53752426,4177.0,4176.9,0.2319]
[1758699382923,10.91298952,4177.0,4176.9,0.2319]
[1758699383520,9.62592746,4177.0,4176.9,0.2319]
[1758699383720,10.91276176,4177.0,4176.9,0.2319]
[1758699384316,9.62592746,4177.0,4176.9,0.2319]
[1758699384740,9.50347435,4177.0,4176.9,0.2319]
[1758699384947,9.50347435,4177.0,4176.9,0.7012]
[1758699385335,9.6267101,4177.0,4176.9,0.7012]
[1758699385745,3.28404165,4177.0,4176.9,0.2319]
[1758699385944,0.88997893,4177.0,4176.9,0.7012]
[1758699386144,0.51451367,4177.0,4176.9,0.7012]
[1758699386469,0.51451367,4177.0,4176.9,15.2012]
[1758699387253,1.15785767,4177.0,4176.9,15.2012]
[1758699388075,0.51451367,4177.0,4176.9,15.2012]
[1758699388568,0.51371367,4177.0,4176.9,15.2012]
[1758699389161,0.51371367,4177.0,4176.9,19.3054]
[1758699389534,0.51371367,4177.0,4176.9,21.69952004]
[1758699389751,0.51371367,4177.0,4176.9,19.3054]
[1758699391781,0.51371367,4177.0,4176.9,21.69952004]
[1758699392134,0.001,4177.5,4177.2,2.39392429]
[1758699392331,0.001,4177.5,4177.3,4.0089389]
[1758699392680,0.001,4177.5,4177.4,0.1192]
[1758699392846,0.001,4177.5,4177.4,1.53832632]
[1758699393430,0.001,4177.5,4177.4,3.9321598]
[1758699393870,0.001,4177.5,4177.4,20.4271598]
[1758699394372,0.001,4177.5,4177.4,26.10748057]
[1758699394569,0.001,4177.5,4177.4,20.4271598]
[1758699397038,0.001,4177.5,4177.4,16.03832632]
[1758699397234,0.001,4177.5,4177.4,14.6192]
[1758699397481,0.001,4177.5,4177.4,18.6032]
[1758699398655,2.39477618,4177.5,4177.4,14.6192]
[1758699398854,2.39477618,4177.5,4177.4,18.484]
[1758699398855,2.63537618,4177.5,4177.4,18.484]
[1758699399050,4.13551303,4177.5,4177.4,14.5]
[1758699399294,0.792,4177.4,4177.3,3.984]
[1758699399464,3.18597215,4177.2,4177.1,3.984]
[1758699399788,3.42657215,4177.2,4177.1,18.484]
[1758699400374,3.42657215,4177.2,4177.1,3.984]
[1758699400742,3.93923844,4177.2,4177.1,3.984]
[1758699401090,3.42654809,4177.2,4177.1,3.984]
[1758699401273,1.30466629,4177.2,4177.1,3.984]
[1758699401466,0.792,4177.2,4177.1,3.984]
[1758699401668,0.792,4177.2,4177.1,4.6671]
[1758699402060,3.69861438,4177.2,4177.1,4.2182]
[1758699402385,0.792,4177.2,4177.1,4.2182]
[1758699402591,1.30466629,4177.2,4177.1,3.984]
[1758699402775,0.792,4177.2,4177.1,3.984]
[1758699402973,1.30466629,4177.2,4177.1,3.984]
[1758699403365,3.69861438,4177.2,4177.1,3.984]
[1758699403569,3.18594809,4177.2,4177.1,3.984]
[1758699403770,1.30466629,4177.2,4177.1,3.984]
[1758699404269,3.69861438,4177.2,4177.1,18.484]
[1758699404670,3.92981438,4177.2,4177.1,18.484]
[1758699405564,3.69861438,4177.2,4177.1,14.5]
[1758699405765,2.39400541,4177.1,4177.0,3.984]
[1758699406097,2.39406272,4177.0,4176.9,0.004]
[1758699406303,2.90672901,4177.0,4176.9,3.988]
[1758699406963,3.13792901,4177.0,4176.9,3.988]
[1758699407362,5.11872997,4177.0,4176.9,0.004]
[1758699407561,5.76207397,4177.0,4176.9,0.004]
[1758699408173,5.11872997,4177.0,4176.9,0.004]
[1758699410269,5.97683054,4177.0,4176.9,0.004]
[1758699411098,3.18612004,4176.9,4176.8,1e-08]
[1758699411317,8.73075681,4176.9,4176.8,1e-08]
[1758699411521,9.43365681,4176.9,4176.8,1e-08]
[1758699411812,6.18623468,4176.7,4176.6,0.004]
[1758699411978,18.57939747,4176.7,4176.6,0.004]
[1758699412178,21.72513507,4176.7,4176.6,0.004]
[1758699413112,20.44315579,4176.7,4176.6,0.004]
[1758699415702,20.44235579,4176.7,4176.6,0.004]
[1758699417801,21.29544819,4176.7,4176.6,0.004]
[1758699420422,9.14093857,4176.7,4176.6,0.004]
[1758699420623,9.78050815,4176.7,4176.6,0.2382]
[1758699420920,9.78050815,4176.7,4176.6,0.6871]
[1758699420921,11.32267055,4176.7,4176.6,0.6871]
[1758699421929,0.51266629,4176.7,4176.6,0.6871]
[1758699422107,0.1192,4176.8,4176.6,0.6871]
[1758699422307,2.39423468,4176.7,4176.6,0.004]
[1758699422794,2.51338603,4176.8,4176.6,0.004]
[1758699423026,2.51338603,4176.8,4176.6,0.6871]
[1758699423221,2.51338603,4176.8,4176.6,0.004]
[1758699423430,0.1192,4176.8,4176.7,0.6831]
[1758699423594,0.001,4177.0,4176.7,0.6831]
[1758699423914,0.001,4177.0,4176.8,0.6831]
[1758699424091,0.001,4177.0,4176.9,0.6831]
[1758699425591,3.18706272,4177.0,4176.9,0.6831]
[1758699426213,3.69972901,4177.0,4176.9,0.6831]
[1758699426941,0.001,4177.0,4176.9,0.6831]
[1758699427267,0.001,4177.0,4176.9,0.8023]
[1758699428518,0.001,4177.0,4176.9,1.12474748]
[1758699430157,0.001,4177.0,4176.9,0.8023]
[1758699431734,0.001,4177.0,4176.6,0.004]
[1758699431949,0.792,4176.8,4176.6,0.004]
[1758699432133,3.94020097,4176.7,4176.6,0.004]
[1758699432536,4.39400097,4176.7,4176.6,0.004]
[1758699432741,6.18575162,4176.7,4176.6,0.004]
[1758699435542,10.16655162,4176.7,4176.6,0.004]
[1758699438431,9.79104175,4176.7,4176.6,0.004]
[1758699439460,5.11514175,4176.7,4176.6,0.004]
[1758699439662,3.69890097,4176.7,4176.6,0.6727]
[1758699439862,0.51266629,4176.7,4176.6,0.6727]
[1758699440169,2.90690097,4176.7,4176.6,0.004]
[1758699440863,0.51266629,4176.7,4176.6,0.6727]
[1758699441455,0.51366629,4176.7,4176.6,0.6727]
[1758699442052,2.90790097,4176.7,4176.6,0.6727]
[1758699442253,2.90790097,4176.7,4176.6,0.004]
[1758699442568,4.93508009,4176.7,4176.6,0.004]
[1758699442773,5.05348009,4176.7,4176.6,0.004]
[1758699443674,4.41268556,4176.7,4176.6,0.004]
[1758699444273,5.05348009,4176.7,4176.6,0.004]
[1758699445289,4.41268556,4176.7,4176.6,0.004]
[1758699445678,5.05348009,4176.7,4176.6,0.004]
[1758699446302,3.81830097,4176.7,4176.6,0.004]
[1758699446500,4.4590955,4176.7,4176.6,0.004]
[1758699446791,3.81830097,4176.7,4176.6,0.004]
[1758699447163,4.4590955,4176.7,4176.6,0.004]
[1758699451697,3.81830097,4176.7,4176.6,0.004]
[1758699452061,4.45823911,4176.7,4176.6,0.004]
[1758699452398,5.14353911,4176.7,4176.6,0.004]
[1758699452610,4.69493911,4176.7,4176.6,0.004]
[1758699453118,5.14353911,4176.7,4176.6,0.004]
[1758699454617,15.75105633,4176.7,4176.6,0.004]
[1758699454932,5.31380784,4176.7,4176.6,0.004]
[1758699455099,9.30680784,4176.7,4176.6,0.004]
[1758699455298,5.31380784,4176.7,4176.6,0.004]
[1758699457725,5.68931533,4176.7,4176.6,0.004]
[1758699458489,5.92601533,4176.7,4176.6,0.004]
[1758699458687,4.69493911,4176.7,4176.6,0.004]
[1758699460114,5.14353911,4176.7,4176.6,0.004]
[1758699460315,6.42551839,4176.7,4176.6,0.004]
[1758699460713,5.97691839,4176.7,4176.6,0.004]
[1758699461324,4.69493911,4176.7,4176.6,0.004]
[1758699462128,5.15263911,4176.7,4176.6,0.004]
[1758699462653,4.69493911,4176.7,4176.6,0.004]
[1758699464257,4.45823911,4176.7,4176.6,0.004]
[1758699464654,10.13968569,4176.7,4176.6,0.004]
[1758699464942,10.13968569,4176.7,4176.6,0.2462]
[1758699465421,3.81830097,4176.7,4176.6,0.7048]
[1758699465818,1.36978343,4176.7,4176.6,0.7048]
[1758699466022,1.15561358,4176.7,4176.6,0.7048]
[1758699466216,0.51286629,4176.7,4176.6,0.7048]
[1758699466415,0.51286629,4176.7,4176.6,15.2048]
[1758699467114,0.51286629,4176.7,4176.6,15.324]
[1758699469854,0.51206629,4176.7,4176.6,15.324]
[1758699473446,0.51206629,4176.7,4176.6,14.6232]
[1758699473648,10.02249484,4176.7,4176.6,14.504]
[1758699473848,12.24691851,4176.7,4176.6,0.004]
[1758699474366,11.39000137,4176.7,4176.6,0.004]
[1758699474732,3.69830097,4176.7,4176.6,0.004]
[1758699479014,3.18723468,4176.7,4176.6,0.004]
[1758699481006,3.82908698,4176.7,4176.6,0.7048]
[1758699481391,3.82908698,4176.7,4176.6,0.004]
[1758699481567,4.04319627,4176.7,4176.6,0.004]
[1758699481875,3.70070685,4176.7,4176.6,0.004]
[1758699482720,3.70070685,4176.7,4176.6,0.7048]
[1758699483792,3.70070685,4176.7,4176.6,0.2462]
[1758699483996,3.70070685,4176.7,4176.6,0.7048]
[1758699484320,3.70070685,4176.7,4176.6,0.004]
[1758699484497,3.70070685,4176.7,4176.6,0.2462]
[1758699484700,3.70070685,4176.7,4176.6,0.004]
[1758699489223,1.30647217,4176.7,4176.6,0.004]
[1758699489519,1.30647217,4176.7,4176.6,0.7048]
[1758699489720,3.70070685,4176.7,4176.6,0.7048]
[1758699490124,3.70070685,4176.7,4176.6,15.2048]
[1758699490996,3.70070685,4176.7,4176.6,14.7462]
[1758699491323,3.70070685,4176.7,4176.6,14.504]
[1758699493126,3.70070685,4176.7,4176.6,0.004]
[1758699493429,3.70070685,4176.7,4176.6,0.2482]
[1758699493607,3.70070685,4176.7,4176.6,14.504]
[1758699495215,3.70070685,4176.7,4176.6,14.7482]
[1758699495796,3.70070685,4176.7,4176.6,15.1898]
[1758699496629,3.70070685,4176.7,4176.6,14.7482]
[1758699496834,4.55666844,4176.7,4176.6,0.2482]
[1758699497021,3.69990685,4176.7,4176.6,0.2482]
[1758699497216,3.69990685,4176.7,4176.6,14.7482]
[1758699497530,4.55586844,4176.7,4176.6,15.2231]
[1758699500397,4.55586844,4176.7,4176.6,0.7231]
[1758699500836,3.69990685,4176.7,4176.6,15.2231]
[1758699501336,4.55586844,4176.7,4176.6,15.2231]
[1758699502611,4.55586844,4176.7,4176.6,15.2056]
[1758699503116,4.55586844,4176.7,4176.6,19.1936]
[1758699504520,3.69990685,4176.7,4176.6,18.492]
[1758699505309,4.55701039,4176.7,4176.6,19.1936]
[1758699505522,3.69990685,4176.7,4176.6,19.1936]
[1758699505705,1.37086611,4176.7,4176.6,19.1936]
[1758699505904,0.51367217,4176.7,4176.6,19.1936]
[1758699506236,1.15666202,4176.7,4176.6,18.492]
[1758699506536,3.5508967,4176.7,4176.6,18.492]
[1758699506740,3.69990685,4176.7,4176.6,3.992]
[1758699507041,4.36230685,4176.7,4176.6,3.992]
[1758699507241,4.69505309,4176.7,4176.6,0.004]
[1758699508116,0.792,4176.3,4176.2,18.488]
[1758699508424,1.30547217,4176.3,4176.2,18.488]
[1758699508629,3.69993616,4176.3,4176.2,14.5]
[1758699510135,4.07544243,4176.3,4176.2,14.5]
[1758699510540,3.69993616,4176.3,4176.2,14.5]
[1758699511239,1.30547217,4176.3,4176.2,15.2016]
[1758699511541,1.94819308,4176.3,4176.2,15.2016]
[1758699512238,1.15619308,4176.3,4176.2,15.2016]
[1758699513548,0.51347217,4176.3,4176.2,15.2016]
[1758699514754,0.88897533,4176.3,4176.2,15.2016]
[1758699517669,1.53169624,4176.3,4176.2,15.2016]
[1758699520281,0.88897533,4176.3,4176.2,15.2016]
[1758699521073,0.88997533,4176.3,4176.2,15.2016]
[1758699521254,1.53269624,4176.3,4176.2,15.2016]
[1758699523983,3.92716023,4176.3,4176.2,14.7267]
[1758699524293,3.28363932,4176.3,4176.2,14.5]
[1758699524494,3.92647165,4176.3,4176.2,14.5]
[1758699524800,0.88917533,4176.3,4176.2,14.5]
[1758699525297,1.53199876,4176.3,4176.2,14.5]
[1758699526095,1.53199876,4176.3,4176.2,14.746]
[1758699526262,1.53199876,4176.3,4176.2,15.2179]
[1758699528376,1.53199876,4176.3,4176.2,14.5]
[1758699528579,3.92646275,4176.3,4176.2,14.5]
[1758699528904,1.53199876,4176.3,4176.2,14.746]
[1758699529205,1.53199876,4176.3,4176.2,15.2179]
[1758699530707,0.51367217,4176.3,4176.2,15.2179]
[1758699532666,0.51367217,4176.3,4176.2,14.5]
[1758699532866,0.51367217,4176.3,4176.2,15.2179]
[1758699537216,0.51367217,4176.3,4176.2,17.61242133]
[1758699537380,0.001,4176.3,4176.2,20.61242133]
[1758699538032,0.001,4176.3,4176.2,21.33230759]
[1758699539733,0.001,4176.3,4176.2,15.2179]
[1758699539919,0.001,4176.3,4176.2,19.2039]
[1758699540102,0.001,4176.3,4176.2,21.59842133]
[1758699547257,0.001,4176.3,4176.2,21.71762133]
[1758699548455,0.001,4176.3,4176.2,19.3231]
[1758699549033,0.001,4176.3,4176.2,21.71762133]
[1758699550520,0.001,4176.3,4176.2,19.3231]
[1758699551256,0.0002,4176.3,4176.2,19.3231]
[1758699551459,0.0002,4176.3,4176.2,14.5]
[1758699551664,3.59149537,4176.3,4176.2,18.485]
[1758699551858,1.19703138,4176.3,4176.2,18.485]
[1758699553269,0.75783138,4176.3,4176.2,18.485]
[1758699554559,0.51373138,4176.3,4176.2,18.485]
[1758699555762,0.75253138,4176.3,4176.2,18.485]
[1758699556261,0.51373138,4176.3,4176.2,18.485]
[1758699558965,0.0002,4176.3,4176.2,19.1649]
[1758699559581,0.0002,4176.3,4176.2,21.55942133]
[1758699561472,0.0002,4176.3,4176.2,21.67862133]
[1758699562939,0.0002,4176.3,4176.2,24.67862133]
[1758699567900,0.0002,4176.3,4176.2,24.77461192]
[1758699572258,0.239,4176.3,4176.2,21.58099059]
[1758699572488,0.239,4176.3,4176.2,21.485]
[1758699572691,0.239,4176.3,4176.2,23.87952133]
[1758699573584,0.0002,4176.3,4176.2,23.87952133]
[1758699574778,0.0002,4176.3,4176.2,24.55942133]
[1758699575560,0.0002,4176.3,4176.2,24.65541215]
[1758699576679,0.0002,4176.3,4176.2,19.99051215]
[1758699576982,0.0002,4176.3,4176.2,23.97551215]
[1758699578406,0.2382,4176.5,4176.4,2.39440666]
[1758699578704,0.2382,4176.5,4176.4,6.37940666]
[1758699579821,0.6922,4176.5,4176.4,3.985]
[1758699581011,0.6922,4176.5,4176.2,14.5]
[1758699581341,1.20637076,4176.4,4176.3,3.985]
[1758699582839,1.20637076,4176.4,4176.3,18.485]
[1758699586312,0.51357076,4176.4,4176.3,18.485]
[1758699586909,0.76067076,4176.4,4176.3,18.485]
[1758699587127,0.51357076,4176.4,4176.3,18.485]
[1758699588285,0.76067076,4176.4,4176.3,18.485]
[1758699590661,0.51357076,4176.4,4176.3,18.485]
[1758699591581,0.51357076,4176.4,4176.3,18.489]
[1758699596406,0.51357076,4176.4,4176.3,19.2725]
[1758699596618,0.51357076,4176.4,4176.3,18.6082]
[1758699597273,0.76067076,4176.4,4176.3,18.6082]
[1758699597607,0.51357076,4176.4,4176.3,18.6082]
[1758699599294,0.51357076,4176.4,4176.3,19.2725]
[1758699599524,0.51357076,4176.4,4176.3,18.6082]
[1758699600515,0.51357076,4176.4,4176.3,19.2725]
[1758699601011,0.51357076,4176.4,4176.3,21.66696399]
[1758699601217,0.51357076,4176.4,4176.3,18.839]
[1758699601370,0.51357076,4176.4,4176.3,21.23346399]
[1758699601701,0.51357076,4176.4,4176.3,21.66696399]
[1758699601899,0.51357076,4176.4,4176.3,19.2725]
[1758699602072,0.51357076,4176.4,4176.3,18.839]
[1758699602397,0.51371872,4176.4,4176.3,18.839]
[1758699602927,0.51371872,4176.4,4176.3,18.6082]
[1758699603800,0.51371872,4176.4,4176.3,14.6232]
[1758699603965,0.51371872,4176.4,4176.3,18.6082]
[1758699604300,0.51371872,4176.4,4176.3,18.839]
[1758699604594,0.51371872,4176.4,4176.3,19.2725]
[1758699604800,0.51371872,4176.4,4176.3,21.66696399]
[1758699604965,0.001,4176.5,4176.3,21.66696399]
[1758699605165,0.001,4176.5,4176.4,3.08265072]
[1758699605393,0.51410292,4176.5,4176.4,3.08265072]
[1758699606598,0.51410292,4176.5,4176.4,0.6643]
[1758699607606,0.51410292,4176.5,4176.4,3.05870666]
[1758699608810,0.51410292,4176.5,4176.4,17.55870666]
[1758699609526,0.0002,4176.5,4176.4,17.55870666]
[1758699610689,0.0002,4176.5,4176.4,14.5]
[1758699611026,0.51446887,4176.5,4176.4,18.485]
[1758699612989,0.76206887,4176.5,4176.4,18.485]
[1758699614533,0.51446887,4176.5,4176.4,18.485]
[1758699615101,0.51446887,4176.5,4176.4,18.7149]
[1758699615598,0.51446887,4176.5,4176.4,19.1841]
[1758699615929,0.0002,4176.5,4176.4,21.57850666]
[1758699622240,0.0002,4176.5,4176.4,19.1841]
[1758699622437,0.0002,4176.5,4176.4,18.485]
[1758699623539,0.0002,4176.5,4176.4,20.87940666]
[1758699624859,0.0002,4176.5,4176.4,21.57850666]
[1758699626760,0.0002,4176.5,4176.4,19.1841]
[1758699626975,0.0002,4176.5,4176.4,21.57850666]
[1758699629578,0.0002,4176.5,4176.4,19.1841]
[1758699630285,0.0002,4176.5,4176.4,18.485]
[1758699631366,0.51475087,4176.5,4176.4,18.485]